[Event "9th Amsterdam Science Park A 2019"]
[Site "Amsterdam"]
[Date "2019.07.14"]
[Round "9.5"]
[White "Arnaudov, G. Petar"]
[Black "Vereggen, Lars"]
[Result "1/2-1/2"]
[ECO "D96"]
[WhiteElo "2478"]
[BlackElo "2370"]
[Annotator "ChessBase"]
[PlyCount "234"]
[EventDate "2019.07.06"]
[EventType "swiss"]
[EventCountry "NED"]
[SourceTitle "playchess.com"]
[Source "ChessBase"]
[SourceQuality "1"]
[TimeControl "40/5400+30:1800+30"]

1. Nf3 {[%emt 0:01:24]} d5 {[%emt 0:00:58]} 2. d4 {[%emt 0:00:08]} Nf6 {[%emt 0:00:11]} 3. c4 {[%emt 0:00:04]} c6 {[%emt 0:00:15]} 4. Nc3 {[%emt 0:00:03]} g6 {[%emt 0:00:15]} 5. cxd5 {[%emt 0:00:09]} cxd5 {[%emt 0:00:15]} 6. Bf4 {[%emt 0:00:04]} Bg7 {[%emt 0:00:27]} 7. h3 {[%emt 0:00:15]} O-O {[%emt 0:00:13]} 8. e3 {[%emt 0:00:02]} Nc6 {[%emt 0:02:38]} 9. Bd3 {[%emt 0:04:15]} Qb6 {[%emt 0:01:55]} 10. a3 {[%emt 0:01:32]} Bf5 {[%emt 0:06:47]} 11. Na4 {[%emt 0:00:49]} Qd8 {[%emt 0:00:18]} 12. Bxf5 {[%emt 0:00:34]} gxf5 {[%emt 0:00:05]} 13. O-O {[%emt 0:02:58]} b6 {[%emt 0:02:51]} 14. b4 {[%emt 0:01:11]} Ne4 {[%emt 0:02:28]} 15. Qb3 {[%emt 0:09:45]} e6 {[%emt 0:03:20]} 16. Rac1 {[%emt 0:00:42]} Qd7 {[%emt 0:01:45]} 17. Rc2 {[%emt 0:00:53]} Rfc8 {[%emt 0:01:18]} 18. Rfc1 {[%emt 0:00:43]} f6 {[%emt 0:02:46]} 19. Nc3 {[%emt 0:03:53]} Ne7 {[%emt 0:09:39]} 20. Nxe4 {[%emt 0:13:31]} dxe4 {[%emt 0:01:48]} 21. Rc7 {[%emt 0:05:03]} Rxc7 {[%emt 0:00:09]} 22. Rxc7 {[%emt 0:00:07]} Qd5 {[%emt 0:00:02]} 23. Qa4 {[%emt 0:02:24]} Ng6 {[%emt 0:06:46]} 24. Nd2 {[%emt 0:01:00]} Nxf4 {[%emt 0:15:09]} 25. exf4 {[%emt 0:00:05]} Qxd4 {[%emt 0:04:14]} 26. Nf1 {[%emt 0:06:30]} Bf8 {[%emt 0:12:06]} 27. Rd7 {[%emt 0:06:18]} Qc3 {[%emt 0:01:12]} 28. Rxa7 {[%emt 0:01:20]} Rxa7 {[%emt 0:01:46]} 29. Qxa7 {[%emt 0:00:07]} Qd4 {[%emt 0:04:00]} 30. Ne3 {[%emt 0:02:55]} Qa1+ {[%emt 0:05:07]} 31. Kh2 {[%emt 0:00:23]} Bd6 {[%emt 0:00:19]} 32. g3 {[%emt 0:00:40]} Qa2 {[%emt 0:00:08]} 33. Kg2 {[%emt 0:03:50]} Bxb4 {[%emt 0:00:20]} 34. Qxb6 {[%emt 0:04:26]} Bxa3 {[%emt 0:10:00]} 35. Qa6 {[%emt 0:01:42]} Qb3 {[%emt 0:03:37]} 36. Nc4 {[%emt 0:01:11]} Qf3+ {[%emt 0:00:31]} 37. Kg1 {[%emt 0:00:29]} Qd1+ {[%emt 0:00:09]} 38. Kh2 {[%emt 0:02:59]} Qf1 {[%emt 0:00:05]} 39. Qxe6+ {[%emt 0:00:36]} Kg7 {[%emt 0:00:15]} 40. Qd7+ {[%emt 0:00:07]} Kg6 {[%emt 0:00:21]} 41. Qxf5+ {[%emt 0:32:17]} Kxf5 {[%emt 0:31:35]} 42. Ne3+ {[%emt 0:00:08]} Ke6 {[%emt 0:00:31]} 43. Nxf1 {[%emt 0:00:05]} h5 {[%emt 0:00:19]} 44. g4 {[%emt 0:04:04]} hxg4 {[%emt 0:00:19]} 45. hxg4 {[%emt 0:00:05]} Bd6 {[%emt 0:00:00]} 46. Kg3 {[%emt 0:00:00]} Bc7 {[%emt 0:00:00]} 47. Ne3 {[%emt 0:00:00]} Bb8 {[%emt 0:00:00]} 48. Nf5 {[%emt 0:00:00]} Bc7 {[%emt 0:00:00]} 49. Ng7+ {[%emt 0:00:00]} Kf7 {[%emt 0:00:00]} 50. Nf5 {[%emt 0:00:00]} Ke6 {[%emt 0:00:00]} 51. Nh4 {[%emt 0:00:00]} Kf7 {[%emt 0:00:00]} 52. f3 {[%emt 0:00:00]} exf3 {[%emt 0:00:00]} 53. Kxf3 {[%emt 0:00:00]} Ke6 {[%emt 0:00:00]} 54. Ke4 {[%emt 0:00:00]} Ba5 {[%emt 0:00:00]} 55. Nf5 {[%emt 0:00:00]} Bc3 {[%emt 0:00:00]} 56. Ne3 {[%emt 0:00:00]} Ba1 {[%emt 0:00:00]} 57. Kd3 {[%emt 0:00:00]} Kf7 {[%emt 0:00:00]} 58. Kc4 {[%emt 0:00:00]} Ke6 {[%emt 0:00:00]} 59. Nd1 {[%emt 0:00:00]} Kd6 {[%emt 0:00:00]} 60. Nf2 {[%emt 0:00:00]} Bb2 {[%emt 0:00:00]} 61. Nd3 {[%emt 0:00:00]} Ba1 {[%emt 0:00:00]} 62. Ne1 {[%emt 0:00:00]} Bb2 {[%emt 0:00:00]} 63. Ng2 {[%emt 0:00:00]} Bc1 {[%emt 0:00:00]} 64. Kd4 {[%emt 0:00:00]} Ke6 {[%emt 0:00:00]} 65. Ke4 {[%emt 0:00:00]} Bb2 {[%emt 0:00:00]} 66. Ne3 {[%emt 0:00:00]} Ba1 {[%emt 0:00:00]} 67. Kd3 {[%emt 0:00:00]} Bb2 {[%emt 0:00:00]} 68. f5+ {[%emt 0:00:00]} Kf7 {[%emt 0:00:00]} 69. Nc4 {[%emt 0:01:00]} Ba1 {[%emt 0:00:00]} 70. Ke3 {[%emt 0:01:30]} Kg7 {[%emt 0:00:00]} 71. Nd2 {[%emt 0:00:42]} Kf7 {[%emt 0:00:00]} 72. Ke4 {[%emt 0:00:18]} Bc3 {[%emt 0:00:00]} 73. Nf1 {[%emt 0:07:52]} Kg7 {[%emt 0:00:00]} 74. Kd3 {[%emt 0:00:09]} Be5 {[%emt 0:00:00]} 75. Nd2 {[%emt 0:00:10]} Kf7 {[%emt 0:00:00]} 76. Kc4 {[%emt 0:00:10]} Ke7 {[%emt 0:00:00]} 77. Kd5 {[%emt 0:00:11]} Bf4 {[%emt 0:00:00]} 78. Ne4 {[%emt 0:00:16]} Be3 {[%emt 0:00:00]} 79. Kc6 {[%emt 0:00:42]} Bd4 {[%emt 0:00:00]} 80. Nd6 {[%emt 0:00:48]} Be5 {[%emt 0:00:00]} 81. Nc8+ {[%emt 0:01:48]} Kd8 {[%emt 0:00:00]} 82. Nb6 {[%emt 0:00:10]} Ke7 {[%emt 0:00:00]} 83. Nd5+ {[%emt 0:01:46]} Ke8 {[%emt 0:00:00]} 84. Nb4 {[%emt 0:00:46]} Bc3 {[%emt 0:00:00]} 85. Nd3 {[%emt 0:00:10]} Ke7 {[%emt 0:00:00]} 86. Nf4 {[%emt 0:00:06]} Ba1 {[%emt 0:00:00]} 87. Nd5+ {[%emt 0:00:16]} Kf7 {[%emt 0:00:00]} 88. Kd7 {[%emt 0:00:24]} Bb2 {[%emt 0:00:00]} 89. Nb6 {[%emt 0:00:26]} Kg7 {[%emt 0:00:00]} 90. Nc4 {[%emt 0:00:06]} Ba1 {[%emt 0:00:00]} 91. Nd6 {[%emt 0:00:13]} Kf8 {[%emt 0:00:00]} 92. Ke6 {[%emt 0:00:40]} Bb2 {[%emt 0:00:00]} 93. Ne4 {[%emt 0:01:26]} Kg7 {[%emt 0:00:00]} 94. Kd6 {[%emt 0:03:16]} Kf7 {[%emt 0:00:00]} 95. Kd7 {[%emt 0:00:13]} Ba1 {[%emt 0:00:00]} 96. Nd6+ {[%emt 0:00:39]} Kg7 {[%emt 0:00:00]} 97. Ke7 {[%emt 0:00:40]} Kh6 {[%emt 0:00:07]} 98. Ne4 {[%emt 0:00:58]} Kg7 {[%emt 0:00:05]} 99. Nc5 {[%emt 0:04:31]} Bb2 {[%emt 0:00:09]} 100. Nd3 {[%emt 0:00:50]} Ba1 {[%emt 0:01:03]} 101. Nf2 {[%emt 0:02:17]} Bb2 {[%emt 0:01:32]} 102. Ke6 {[%emt 0:00:26]} Ba1 {[%emt 0:00:22]} 103. Nh3 {[%emt 0:00:26]} Bb2 {[%emt 0:00:38]} 104. Nf4 {[%emt 0:00:28]} Kh6 {[%emt 0:00:17]} 105. Nh3 {[%emt 0:00:25]} Kg7 {[%emt 0:00:06]} 106. Nf4 {[%emt 0:03:11]} Kh6 {[%emt 0:00:06]} 107. Nd3 {[%emt 0:00:03]} Ba1 {[%emt 0:00:17]} 108. Nb4 {[%emt 0:01:20]} Kg7 {[%emt 0:00:31]} 109. Nd3 {[%emt 0:00:16]} Kh6 {[%emt 0:00:14]} 110. Kf7 {[%emt 0:00:27]} Kg5 {[%emt 0:00:17]} 111. Nc5 {[%emt 0:00:14]} Kf4 {[%emt 0:01:06]} 112. Kg6 {[%emt 0:00:12]} Kxg4 {[%emt 0:00:07]} 113. Nd7 {[%emt 0:00:11]} Kh4 {[%emt 0:00:23]} 114. Nxf6 {[%emt 0:00:05]} Bb2 {[%emt 0:00:04]} 115. Ne4 {[%emt 0:00:14]} Kg4 {[%emt 0:00:14]} 116. Nf2+ {[%emt 0:00:06]} Kf3 {[%emt 0:00:29]} 117. f6 {[%emt 0:00:23]} Bxf6 {[%emt 0:00:05]} 1/2-1/2

[Event "9th Amsterdam Science Park A 2019"]
[Site "Amsterdam"]
[Date "2019.07.14"]
[Round "9.6"]
[White "Belous, Mikhail"]
[Black "Bosboom, Manuel"]
[Result "1/2-1/2"]
[ECO "A53"]
[WhiteElo "2289"]
[BlackElo "2418"]
[Annotator "NA"]
[PlyCount "85"]
[EventDate "2019.07.06"]
[EventType "swiss"]
[EventCountry "NED"]
[SourceTitle "playchess.com"]
[Source "ChessBase"]
[SourceQuality "1"]
[TimeControl "40/5400+30:1800+30"]

1. d4 {[%emt 0:00:00]} Nf6 {[%emt 0:06:05]} 2. c4 {[%emt 0:00:00]} d6 {[%emt 0:00:56]} 3. Nc3 {[%emt 0:00:36]} Nbd7 {[%emt 0:00:29]} 4. e4 {[%emt 0:00:44]} e5 {[%emt 0:00:26]} 5. Nge2 {[%emt 0:01:00]} c6 {[%emt 0:02:50]} 6. d5 {[%emt 0:04:18]} h5 {[%emt 0:12:25]} 7. h3 {[%emt 0:09:03]} Nc5 {[%emt 0:03:14]} 8. Qc2 {[%emt 0:06:13]} a5 {[%emt 0:03:48]} 9. Be3 {[%emt 0:03:10]} a4 {[%emt 0:11:45]} 10. Bxc5 {[%emt 0:07:45]} dxc5 {[%emt 0:00:07]} 11. Nxa4 {[%emt 0:03:56]} b5 {[%emt 0:04:49]} 12. Nac3 {[%emt 0:04:46]} b4 {[%emt 0:01:40]} 13. Nd1 {[%emt 0:02:08]} cxd5 {[%emt 0:06:24]} 14. cxd5 $16 {[%emt 0:06:26]} ({Reject} 14. exd5 g6 $14) 14... c4 {[%emt 0:10:31]} 15. Qxc4 {[%emt 0:05:05]} Bd7 {[%emt 0:05:21]} 16. Nc1 {[%emt 0:01:53]} Rc8 {[%emt 0:06:03]} 17. Qd3 {[%emt 0:00:33]} Bc5 {[%emt 0:03:15]} 18. Be2 {[%emt 0:01:54]} Rh6 {[%emt 0:02:14]} 19. O-O {[%emt 0:02:36]} Ng4 {[%emt 0:07:18]} 20. Nb3 {[%emt 0:16:49]} Bb6 {[%emt 0:00:38]} 21. Nd2 {[%emt 0:00:38]} Qg5 {[%emt 0:01:15]} 22. Kh1 {[%emt 0:04:44]} Rg6 {[%emt 0:01:25]} 23. g3 {[%emt 0:02:38]} h4 {[%emt 0:03:22]} 24. Nf3 {[%emt 0:06:33]} Nxf2+ {[%emt 0:01:40]} 25. Nxf2 {[%emt 0:00:38]} Qxg3 {[%emt 0:00:04]} 26. Rg1 {[%emt 0:00:25]} Qxf2 {[%emt 0:00:13]} 27. Rxg6 {[%emt 0:00:11]} fxg6 {[%emt 0:00:21]} 28. Nxe5 {[%emt 0:00:13]} Be3 {[%emt 0:01:10]} 29. Ng4 {[%emt 0:06:11]} Bxg4 {[%emt 0:00:36]} 30. Bxg4 {[%emt 0:00:04]} Bf4 {[%emt 0:02:25]} 31. Qe2 {[%emt 0:00:17]} Qxe2 {[%emt 0:00:24]} 32. Bxe2 {[%emt 0:00:02]} Rc2 {[%emt 0:00:02]} 33. Bg4 {[%emt 0:01:17]} Be5 {[%emt 0:01:19]} 34. Rd1 {[%emt 0:01:45]} Ke7 {[%emt 0:00:07]} 35. d6+ {[%emt 0:01:01]} Bxd6 {[%emt 0:00:01]} 36. Rd5 {[%emt 0:00:05]} Rh2+ {[%emt 0:02:00]} 37. Kg1 {[%emt 0:00:02]} Rxb2 {[%emt 0:00:03]} 38. e5 {[%emt 0:00:21]} Bb8 {[%emt 0:00:08]} 39. Rb5 {[%emt 0:01:34]} Ba7+ {[%emt 0:01:48]} 40. Kf1 {[%emt 0:00:06]} Bd4 {[%emt 0:00:18]} 41. Rb7+ {[%emt 0:31:45]} Ke8 {[%emt 0:01:36]} 42. Rb8+ {[%emt 0:00:00]} Ke7 {[%emt 0:00:28]} 43. Rb7+ {[%emt 0:00:00]} 1/2-1/2

[Event "9th Amsterdam Science Park A 2019"]
[Site "Amsterdam"]
[Date "2019.07.14"]
[Round "9.7"]
[White "Elgersma, Onno"]
[Black "Zwirs, Nico"]
[Result "0-1"]
[ECO "B32"]
[WhiteElo "2232"]
[BlackElo "2380"]
[Annotator "NA"]
[PlyCount "92"]
[EventDate "2019.07.06"]
[EventType "swiss"]
[EventCountry "NED"]
[SourceTitle "playchess.com"]
[Source "ChessBase"]
[SourceQuality "1"]
[TimeControl "40/5400+30:1800+30"]

1. e4 {[%emt 0:00:00]} c5 {[%emt 0:01:01]} 2. Nf3 {[%emt 0:00:00]} Nc6 {[%emt 0:00:22]} 3. d4 {[%emt 0:03:00]} cxd4 {[%emt 0:00:56]} 4. Nxd4 {[%emt 0:00:02]} Qb6 {[%emt 0:00:28]} 5. Nb3 {[%emt 0:01:07]} Nf6 {[%emt 0:00:25]} 6. Nc3 {[%emt 0:00:34]} e6 {[%emt 0:00:05]} 7. Be3 {[%emt 0:04:45]} Qc7 {[%emt 0:00:11]} 8. Bd3 {[%emt 0:01:55]} Bb4 {[%emt 0:02:46]} 9. f4 {[%emt 0:12:29]} d6 {[%emt 0:11:42]} 10. Qd2 {[%emt 0:03:37]} Ne7 {[%emt 0:29:41]} 11. Bd4 {[%emt 0:08:14]} e5 {[%emt 0:01:11]} 12. Bg1 {[%emt 0:09:29]} d5 {[%emt 0:09:49]} 13. exd5 {[%emt 0:16:55]} Nfxd5 {[%emt 0:07:52]} 14. Bb5+ {[%emt 0:03:22]} Bd7 {[%emt 0:02:29]} 15. Bxd7+ {[%emt 0:05:09]} Qxd7 {[%emt 0:00:01]} 16. O-O-O {[%emt 0:01:03]} Qc7 {[%emt 0:01:50]} 17. fxe5 {[%emt 0:12:22]} Nxc3 {[%emt 0:02:08]} 18. bxc3 {[%emt 0:00:29]} Bxc3 {[%emt 0:01:09]} 19. Qd6 {[%emt 0:01:59]} Bxe5 {[%emt 0:05:39]} 20. Qxc7 {[%emt 0:01:01]} Bxc7 {[%emt 0:00:01]} 21. Bd4 {[%emt 0:03:32]} f6 {[%emt 0:09:20]} 22. Rhe1 {[%emt 0:02:08]} b6 {[%emt 0:00:19]} 23. Bb2 {[%emt 0:03:01]} Rd8 {[%emt 0:00:08]} 24. Rxd8+ {[%emt 0:01:48]} Bxd8 {[%emt 0:06:32]} 25. Nd4 {[%emt 0:02:43]} Kf7 {[%emt 0:00:07]} 26. Ba3 {[%emt 0:00:48]} Re8 {[%emt 0:01:12]} 27. Nb5 {[%emt 0:01:03]} Nc8 {[%emt 0:00:05]} 28. Rd1 {[%emt 0:00:49]} a6 {[%emt 0:03:09]} 29. Nc3 {[%emt 0:00:01]} Be7 {[%emt 0:02:02]} 30. Bxe7 {[%emt 0:00:07]} Rxe7 {[%emt 0:00:07]} 31. Rd8 {[%emt 0:00:31]} Re8 {[%emt 0:01:30]} 32. Rd7+ {[%emt 0:00:06]} Re7 {[%emt 0:00:01]} 33. Rd8 {[%emt 0:00:05]} Rc7 {[%emt 0:00:13]} 34. Nd5 {[%emt 0:00:16]} Rc5 {[%emt 0:00:06]} 35. Nb4 {[%emt 0:00:53]} a5 {[%emt 0:00:35]} 36. Nd3 {[%emt 0:00:28]} Rc7 {[%emt 0:00:23]} 37. Rh8 {[%emt 0:00:56]} h6 {[%emt 0:00:18]} 38. Nf4 {[%emt 0:00:17]} Ne7 {[%emt 0:00:41]} 39. Rb8 {[%emt 0:00:11]} g5 {[%emt 0:00:39]} 40. Nh5 {[%emt 0:00:55]} Nc8 {[%emt 0:01:20]} 41. g4 {[%emt 0:05:19]} Ke6 {[%emt 0:02:00]} 42. Ng3 {[%emt 0:04:51]} Kd7 {[%emt 0:01:53]} 43. Ra8 {[%emt 0:04:56]} Rc4 {[%emt 0:01:14]} 44. Nf5 {[%emt 0:06:42]} Rxg4 {[%emt 0:00:23]} 45. Nxh6 {[%emt 0:00:48]} Rg1+ {[%emt 0:00:20]} 46. Kb2 {[%emt 0:00:08]} Kc7 {[%emt 0:00:10]} 0-1

[Event "9th Amsterdam Science Park A 2019"]
[Site "Amsterdam"]
[Date "2019.07.14"]
[Round "9.8"]
[White "Van der Poel, Henk"]
[Black "De Jong, Tom"]
[Result "1-0"]
[ECO "B12"]
[WhiteElo "2233"]
[BlackElo "2176"]
[Annotator "NA"]
[PlyCount "69"]
[EventDate "2019.07.06"]
[EventType "swiss"]
[EventCountry "NED"]
[SourceTitle "playchess.com"]
[Source "ChessBase"]
[SourceQuality "1"]
[TimeControl "40/5400+30:1800+30"]

1. e4 {[%emt 0:00:00]} c6 {[%emt 0:00:00]} 2. d4 {[%emt 0:00:02]} d5 {[%emt 0:00:00]} 3. e5 {[%emt 0:00:24]} c5 {[%emt 0:00:58]} 4. dxc5 {[%emt 0:00:33]} e6 {[%emt 0:00:09]} 5. a3 {[%emt 0:00:33]} Nc6 {[%emt 0:00:51]} 6. Nf3 {[%emt 0:00:36]} Bxc5 {[%emt 0:00:11]} 7. Bd3 {[%emt 0:00:27]} Nge7 {[%emt 0:00:41]} 8. b4 {[%emt 0:03:39]} Bb6 {[%emt 0:00:16]} 9. O-O {[%emt 0:00:12]} Ng6 {[%emt 0:00:47]} 10. Bb2 {[%emt 0:03:18]} Nf4 {[%emt 0:02:48]} 11. c4 {[%emt 0:00:56]} O-O {[%emt 0:00:26]} 12. c5 {[%emt 0:10:02]} Bc7 {[%emt 0:00:20]} 13. Re1 {[%emt 0:00:28]} f6 {[%emt 0:01:51]} 14. exf6 {[%emt 0:03:16]} e5 {[%emt 0:01:19]} 15. b5 {[%emt 0:19:42]} e4 {[%emt 0:07:28]} 16. Bf1 {[%emt 0:02:10]} Bg4 {[%emt 0:04:24]} 17. Nbd2 {[%emt 0:08:55]} Rxf6 {[%emt 0:36:52]} 18. Nxe4 {[%emt 0:10:15]} dxe4 {[%emt 0:09:42]} 19. Qxd8+ {[%emt 0:02:20]} Nxd8 {[%emt 0:00:39]} 20. Bxf6 {[%emt 0:01:55]} exf3 {[%emt 0:06:53]} 21. Bc4+ {[%emt 0:04:53]} Nde6 {[%emt 0:02:16]} 22. gxf3 {[%emt 0:02:17]} Bf5 {[%emt 0:06:15]} 23. Be5 {[%emt 0:01:44]} Kf8 {[%emt 0:04:02]} 24. Rad1 {[%emt 0:03:36]} Ba5 {[%emt 0:02:24]} 25. Bd6+ {[%emt 0:01:36]} Kf7 {[%emt 0:02:53]} 26. Bxf4 {[%emt 0:02:23]} Bxe1 {[%emt 0:00:05]} 27. Rxe1 {[%emt 0:00:01]} Rc8 {[%emt 0:01:09]} 28. Bd6 {[%emt 0:08:41]} Kf6 {[%emt 0:00:30]} 29. Bxe6 {[%emt 0:02:20]} Bxe6 {[%emt 0:00:07]} 30. f4 {[%emt 0:00:22]} g6 {[%emt 0:01:55]} 31. f3 {[%emt 0:01:11]} a6 {[%emt 0:01:50]} 32. c6 {[%emt 0:04:19]} b6 {[%emt 0:03:31]} 33. bxa6 {[%emt 0:00:43]} Bd5 {[%emt 0:02:27]} 34. a7 {[%emt 0:01:43]} Bxc6 {[%emt 0:00:15]} 35. Rc1 {[%emt 0:00:17]} 1-0

[Event "9th Amsterdam Science Park A 2019"]
[Site "Amsterdam"]
[Date "2019.07.14"]
[Round "9.9"]
[White "Bekedam, Tyro"]
[Black "De Groote, Ewoud"]
[Result "1-0"]
[ECO "C77"]
[WhiteElo "2142"]
[BlackElo "2225"]
[Annotator "NA"]
[PlyCount "125"]
[EventDate "2019.07.06"]
[EventType "swiss"]
[EventCountry "NED"]
[SourceTitle "playchess.com"]
[Source "ChessBase"]
[SourceQuality "1"]
[TimeControl "40/5400+30:1800+30"]

1. e4 {[%emt 0:00:00]} e5 {[%emt 0:00:00]} 2. Nf3 {[%emt 0:00:00]} Nc6 {[%emt 0:00:00]} 3. Bb5 {[%emt 0:00:00]} a6 {[%emt 0:00:00]} 4. Ba4 {[%emt 0:00:02]} Nf6 {[%emt 0:00:00]} 5. d3 {[%emt 0:00:18]} d6 {[%emt 0:00:05]} 6. c3 {[%emt 0:00:28]} g6 {[%emt 0:00:48]} 7. O-O {[%emt 0:05:06]} Bg7 {[%emt 0:00:02]} 8. Re1 {[%emt 0:03:02]} O-O {[%emt 0:00:41]} 9. Nbd2 {[%emt 0:01:19]} Nd7 {[%emt 0:02:06]} 10. Nf1 {[%emt 0:01:46]} Nb6 {[%emt 0:00:56]} 11. Bb3 {[%emt 0:00:48]} Kh8 {[%emt 0:03:17]} 12. a4 {[%emt 0:04:09]} a5 {[%emt 0:06:01]} 13. Ng3 {[%emt 0:05:27]} Qe7 {[%emt 0:10:45]} 14. d4 {[%emt 0:02:58]} Bg4 {[%emt 0:01:41]} 15. d5 {[%emt 0:05:10]} Nd8 {[%emt 0:02:02]} 16. Bc2 {[%emt 0:04:18]} f6 {[%emt 0:01:50]} 17. b3 {[%emt 0:05:18]} Nf7 {[%emt 0:00:23]} 18. h3 {[%emt 0:00:52]} Bd7 {[%emt 0:00:58]} 19. Be3 {[%emt 0:03:43]} Bh6 {[%emt 0:00:57]} 20. Bxb6 {[%emt 0:05:49]} cxb6 {[%emt 0:00:01]} 21. Nd2 {[%emt 0:00:27]} Rfc8 {[%emt 0:02:23]} 22. Nc4 {[%emt 0:02:02]} Qd8 {[%emt 0:01:13]} 23. Bd3 {[%emt 0:00:35]} b5 {[%emt 0:04:31]} 24. axb5 {[%emt 0:03:42]} Bxb5 {[%emt 0:00:33]} 25. Na3 {[%emt 0:10:37]} Bd7 {[%emt 0:00:46]} 26. c4 {[%emt 0:00:50]} Qb6 {[%emt 0:02:19]} 27. Qf3 {[%emt 0:02:07]} Kg7 {[%emt 0:00:38]} 28. h4 {[%emt 0:05:25]} Rc7 {[%emt 0:02:40]} 29. Ne2 {[%emt 0:02:02]} a4 {[%emt 0:09:13]} 30. bxa4 {[%emt 0:02:38]} Rxa4 {[%emt 0:00:18]} 31. Nc3 {[%emt 0:01:45]} Ra5 {[%emt 0:07:22]} 32. Nab5 {[%emt 0:01:45]} Rc8 {[%emt 0:02:14]} 33. Rxa5 {[%emt 0:07:58]} Qxa5 {[%emt 0:00:02]} 34. Qe2 {[%emt 0:00:33]} Ra8 {[%emt 0:03:59]} 35. Rb1 {[%emt 0:01:22]} Qd8 {[%emt 0:03:32]} 36. g3 {[%emt 0:01:33]} Qc8 {[%emt 0:08:41]} 37. Qc2 {[%emt 0:01:15]} f5 {[%emt 0:08:57]} 38. Na4 {[%emt 0:02:35]} fxe4 {[%emt 0:03:24]} 39. Bxe4 {[%emt 0:00:09]} Ra6 {[%emt 0:00:21]} 40. c5 {[%emt 0:02:03]} Bf5 {[%emt 0:05:54]} 41. Rb4 {[%emt 0:09:26]} Kf6 {[%emt 0:03:05]} 42. Rc4 {[%emt 0:01:18]} Bf8 {[%emt 0:06:26]} 43. Bxf5 {[%emt 0:04:17]} gxf5 {[%emt 0:00:19]} 44. c6 {[%emt 0:00:26]} bxc6 {[%emt 0:01:32]} 45. Rxc6 {[%emt 0:00:23]} Qb7 {[%emt 0:00:56]} 46. Nc7 {[%emt 0:05:10]} Ra7 {[%emt 0:08:26]} 47. Nb6 {[%emt 0:03:26]} Be7 {[%emt 0:06:27]} 48. Ne8+ {[%emt 0:02:27]} Kg6 {[%emt 0:00:33]} 49. h5+ {[%emt 0:00:16]} Kg5 {[%emt 0:00:55]} 50. f4+ {[%emt 0:01:33]} exf4 {[%emt 0:00:50]} 51. gxf4+ {[%emt 0:00:49]} Kg4 {[%emt 0:00:41]} 52. Ng7 {[%emt 0:01:23]} Nh6 {[%emt 0:01:31]} 53. Qg2+ {[%emt 0:00:58]} Kh4 {[%emt 0:00:16]} 54. Qf2+ {[%emt 0:00:12]} Kg4 {[%emt 0:00:22]} 55. Rc3 {[%emt 0:00:10]} Qxb6 {[%emt 0:01:46]} 56. Qxb6 {[%emt 0:00:15]} Ra1+ {[%emt 0:00:03]} 57. Kf2 {[%emt 0:00:52]} Bh4+ {[%emt 0:03:40]} 58. Ke2 {[%emt 0:00:09]} Bf6 {[%emt 0:00:09]} 59. Rc7 {[%emt 0:01:41]} Ra2+ {[%emt 0:01:25]} 60. Kd1 {[%emt 0:00:14]} Ra1+ {[%emt 0:00:16]} 61. Rc1 {[%emt 0:00:12]} Rxc1+ {[%emt 0:00:53]} 62. Kxc1 {[%emt 0:00:06]} Bxg7 {[%emt 0:00:05]} 63. Qg1+ {[%emt 0:00:06]} 1-0

[Event "9th Amsterdam Science Park A 2019"]
[Site "Amsterdam"]
[Date "2019.07.14"]
[Round "9.10"]
[White "Baarslag, Ed"]
[Black "Van Baar, Esper"]
[Result "0-1"]
[ECO "E73"]
[WhiteElo "2220"]
[BlackElo "2108"]
[Annotator "NA"]
[PlyCount "80"]
[EventDate "2019.07.06"]
[EventType "swiss"]
[EventCountry "NED"]
[SourceTitle "playchess.com"]
[Source "ChessBase"]
[SourceQuality "1"]
[TimeControl "40/5400+30:1800+30"]

1. d4 {[%emt 0:00:00]} Nf6 {[%emt 0:06:51]} 2. c4 {[%emt 0:00:00]} g6 {[%emt 0:00:48]} 3. Nc3 {[%emt 0:00:14]} Bg7 {[%emt 0:00:07]} 4. e4 {[%emt 0:00:13]} d6 {[%emt 0:00:05]} 5. Be2 {[%emt 0:00:38]} O-O {[%emt 0:00:14]} 6. Bg5 {[%emt 0:00:17]} h6 {[%emt 0:06:42]} 7. Be3 {[%emt 0:00:24]} e5 {[%emt 0:05:18]} 8. d5 {[%emt 0:00:43]} Na6 {[%emt 0:06:37]} 9. Qd2 {[%emt 0:01:52]} Kh7 {[%emt 0:00:32]} 10. f3 {[%emt 0:01:24]} Nh5 {[%emt 0:05:37]} 11. Bd1 {[%emt 0:18:12]} f5 {[%emt 0:03:43]} 12. Nge2 {[%emt 0:02:23]} f4 {[%emt 0:15:43]} 13. Bf2 {[%emt 0:00:28]} Bf6 {[%emt 0:00:02]} 14. Bc2 {[%emt 0:15:42]} Bh4 {[%emt 0:01:55]} 15. g3 {[%emt 0:01:49]} fxg3 {[%emt 0:01:08]} 16. hxg3 {[%emt 0:00:38]} Bg5 {[%emt 0:02:16]} 17. f4 {[%emt 0:02:51]} exf4 {[%emt 0:01:04]} 18. Rxh5 {[%emt 0:19:24]} fxg3 {[%emt 0:09:22]} 19. Be3 {[%emt 0:02:01]} g2 {[%emt 0:11:06]} 20. O-O-O {[%emt 0:02:28]} gxh5 {[%emt 0:00:11]} 21. e5+ {[%emt 0:01:52]} Bf5 {[%emt 0:01:05]} 22. Ne4 {[%emt 0:00:45]} Bxe3 {[%emt 0:03:36]} 23. Qxe3 {[%emt 0:00:08]} dxe5 {[%emt 0:01:10]} 24. d6 {[%emt 0:01:24]} c6 {[%emt 0:05:48]} 25. d7 {[%emt 0:01:15]} Qe7 {[%emt 0:07:05]} 26. Rd6 {[%emt 0:02:21]} Qg7 {[%emt 0:00:02]} 27. N4g3 {[%emt 0:09:59]} Bxc2 {[%emt 0:02:04]} 28. Kxc2 {[%emt 0:00:03]} Qg5 {[%emt 0:02:28]} 29. Qe4+ {[%emt 0:00:31]} Kg7 {[%emt 0:00:12]} 30. Qxg2 {[%emt 0:01:58]} Kh8 {[%emt 0:01:18]} 31. Qh3 {[%emt 0:02:12]} Rad8 {[%emt 0:00:49]} 32. Ne4 {[%emt 0:01:33]} Qg4 {[%emt 0:00:29]} 33. Qe3 {[%emt 0:00:30]} Rf4 {[%emt 0:00:31]} 34. Nxf4 {[%emt 0:00:27]} Qxf4 {[%emt 0:00:14]} 35. Qe2 {[%emt 0:04:09]} Qg4 {[%emt 0:00:46]} 36. Rxh6+ {[%emt 0:00:51]} Kg7 {[%emt 0:00:14]} 37. Rh7+ {[%emt 0:00:09]} Kg6 {[%emt 0:00:42]} 38. Qe3 {[%emt 0:01:48]} Qg2+ {[%emt 0:00:22]} 39. Kb3 {[%emt 0:00:47]} Kxh7 {[%emt 0:00:06]} 40. Nf6+ {[%emt 0:00:28]} Kg6 {[%emt 0:00:42]} 0-1